[Event "Titled Tuesday Blitz November 2 2021"]
[White "Abdrlauf, Elham"]
[Black "Chernomordik, Pavel"]
[WhiteFideId "1533533"]
[BlackFideId "2804530"]
[WhiteElo "2362"]
[BlackElo "2281"]
[Result "1-0"]
[Round "01"]
[TimeControl "180+1"]
[Date "2021.11.02"]
[WhiteClock "0:01:17"]
[BlackClock "0:00:02"]

1. e4 {[%clk 0:02:59]}  g6 {[%clk 0:02:59]} 2. d4 {[%clk 0:02:58]}  Bg7 {[%clk 0:02:59]} 3. Nf3 {[%clk 0:02:58]}  d6 {[%clk 0:02:59]} 4. Be3 {[%clk 0:02:58]}  c5 {[%clk 0:02:55]} 5. Nc3 {[%clk 0:02:56]}  Qa5 {[%clk 0:02:48]} 6. Bb5+ {[%clk 0:02:52]}  Bd7 {[%clk 0:02:48]} 7. Bxd7+ {[%clk 0:02:52]}  Nxd7 {[%clk 0:02:47]} 8. O-O {[%clk 0:02:53]}  Ngf6 {[%clk 0:02:45]} 9. e5 {[%clk 0:02:48]}  Ng4 {[%clk 0:02:41]} 10. exd6 {[%clk 0:02:46]}  Nxe3 {[%clk 0:02:40]} 11. fxe3 {[%clk 0:02:45]}  exd6 {[%clk 0:02:38]} 12. Ne4 {[%clk 0:02:36]}  O-O {[%clk 0:02:32]} 13. Qd3 {[%clk 0:02:28]}  c4 {[%clk 0:02:23]} 14. Qxc4 {[%clk 0:02:24]}  d5 {[%clk 0:02:23]} 15. Qc3 {[%clk 0:02:25]}  Qb6 {[%clk 0:02:17]} 16. Nf2 {[%clk 0:02:04]}  Rac8 {[%clk 0:02:10]} 17. Qb3 {[%clk 0:02:04]}  Qc7 {[%clk 0:01:55]} 18. c3 {[%clk 0:02:02]}  Nb6 {[%clk 0:01:50]} 19. e4 {[%clk 0:01:59]}  Nc4 {[%clk 0:01:35]} 20. exd5 {[%clk 0:01:55]}  Bh6 {[%clk 0:01:32]} 21. Rfe1 {[%clk 0:01:53]}  Qd7 {[%clk 0:01:20]} 22. Ne4 {[%clk 0:01:50]}  Qf5 {[%clk 0:01:07]} 23. Qc2 {[%clk 0:01:36]}  Be3+ {[%clk 0:00:59]} 24. Kh1 {[%clk 0:01:28]}  Rfe8 {[%clk 0:00:58]} 25. b3 {[%clk 0:01:27]}  Rxe4 {[%clk 0:00:52]} 26. bxc4 {[%clk 0:01:27]}  Rxc4 {[%clk 0:00:53]} 27. Nd2 {[%clk 0:01:15]}  Bxd2 {[%clk 0:00:40]} 28. Rxe4 {[%clk 0:01:14]}  Bxc3 {[%clk 0:00:24]} 29. Re8+ {[%clk 0:01:12]}  Kg7 {[%clk 0:00:24]} 30. Qxf5 {[%clk 0:01:13]}  gxf5 {[%clk 0:00:24]} 31. Rd1 {[%clk 0:01:13]}  Bxd4 {[%clk 0:00:19]} 32. d6 {[%clk 0:01:13]}  Bb6 {[%clk 0:00:15]} 33. d7 {[%clk 0:01:13]}  f4 {[%clk 0:00:13]} 34. d8=Q {[%clk 0:01:14]}  Bxd8 {[%clk 0:00:12]} 35. Rexd8 {[%clk 0:01:14]}  Rc2 {[%clk 0:00:11]} 36. R8d2 {[%clk 0:01:14]}  Rc4 {[%clk 0:00:11]} 37. Rf2 {[%clk 0:01:15]}  Kg6 {[%clk 0:00:10]} 38. Rdf1 {[%clk 0:01:16]}  Kg5 {[%clk 0:00:10]} 39. Rf3 {[%clk 0:01:14]}  b5 {[%clk 0:00:06]} 40. g3 {[%clk 0:01:15]}  fxg3 {[%clk 0:00:06]} 41. Rxg3+ {[%clk 0:01:16]}  Kh6 {[%clk 0:00:05]} 42. Rf6+ {[%clk 0:01:16]}  Kh5 {[%clk 0:00:05]} 43. Rxf7 {[%clk 0:01:17]}  h6 {[%clk 0:00:02]} 44. Kg2 {[%clk 0:01:16]}  Rc2+ {[%clk 0:00:02]} 45. Kh3 {[%clk 0:01:17]} 1-0


[Site "https://www.chess.com"]

[Event "Titled Tuesday Blitz November 2 2021"]
[White "Altman, Joshua"]
[Black "Rasulov, Vugar"]
[WhiteFideId "426210"]
[BlackFideId "13402390"]
[WhiteElo "1945"]
[BlackElo "2560"]
[Result "0-1"]
[Round "01"]
[TimeControl "180+1"]
[Date "2021.11.02"]
[WhiteClock "0:02:01"]
[BlackClock "0:02:11"]

1. d4 {[%clk 0:03:00]}  Nf6 {[%clk 0:02:59]} 2. c4 {[%clk 0:03:01]}  e6 {[%clk 0:02:59]} 3. Nf3 {[%clk 0:03:01]}  b6 {[%clk 0:02:58]} 4. g3 {[%clk 0:03:00]}  Bb4+ {[%clk 0:02:58]} 5. Nbd2 {[%clk 0:02:59]}  c5 {[%clk 0:02:59]} 6. dxc5 {[%clk 0:02:58]}  Bxc5 {[%clk 0:02:58]} 7. Bg2 {[%clk 0:02:58]}  Bb7 {[%clk 0:02:59]} 8. O-O {[%clk 0:02:58]}  O-O {[%clk 0:03:00]} 9. a3 {[%clk 0:02:58]}  a5 {[%clk 0:02:55]} 10. b3 {[%clk 0:02:58]}  d5 {[%clk 0:02:54]} 11. Bb2 {[%clk 0:02:58]}  Nbd7 {[%clk 0:02:55]} 12. Ne5 {[%clk 0:02:52]}  Nxe5 {[%clk 0:02:50]} 13. Bxe5 {[%clk 0:02:53]}  Ng4 {[%clk 0:02:50]} 14. Bb2 {[%clk 0:02:52]}  Rb8 {[%clk 0:02:40]} 15. h3 {[%clk 0:02:51]}  Nf6 {[%clk 0:02:36]} 16. Qc2 {[%clk 0:02:50]}  d4 {[%clk 0:02:35]} 17. Bxb7 {[%clk 0:02:46]}  Rxb7 {[%clk 0:02:36]} 18. Ne4 {[%clk 0:02:46]}  e5 {[%clk 0:02:31]} 19. Rad1 {[%clk 0:02:35]}  Rd7 {[%clk 0:02:31]} 20. Bc1 {[%clk 0:02:27]}  h6 {[%clk 0:02:29]} 21. Nxf6+ {[%clk 0:02:15]}  Qxf6 {[%clk 0:02:29]} 22. Qe4 {[%clk 0:02:15]}  Qe6 {[%clk 0:02:28]} 23. Kg2 {[%clk 0:02:11]}  f5 {[%clk 0:02:28]} 24. Qc2 {[%clk 0:02:10]}  e4 {[%clk 0:02:28]} 25. Bb2 {[%clk 0:02:09]}  d3 {[%clk 0:02:21]} 26. exd3 {[%clk 0:02:09]}  exd3 {[%clk 0:02:22]} 27. Qc3 {[%clk 0:02:06]}  Qe4+ {[%clk 0:02:19]} 28. Kg1 {[%clk 0:02:02]}  f4 {[%clk 0:02:11]} 29. Rfe1 {[%clk 0:02:01]}  Qf3 {[%clk 0:02:11]} 0-1


[Site "https://www.chess.com"]

[Event "Titled Tuesday Blitz November 2 2021"]
[White "Artemenko, Oleg"]
[Black "Gokerkan, Cem Kaan"]
[WhiteFideId "14201798"]
[BlackFideId "6336760"]
[WhiteElo "2287"]
[BlackElo "2382"]
[Result "1-0"]
[Round "01"]
[TimeControl "180+1"]
[Date "2021.11.02"]
[WhiteClock "0:00:20"]
[BlackClock "0:00:05"]

1. d4 {[%clk 0:02:58]}  Nf6 {[%clk 0:02:59]} 2. Nc3 {[%clk 0:02:59]}  d5 {[%clk 0:02:59]} 3. Bf4 {[%clk 0:02:59]}  e6 {[%clk 0:02:52]} 4. Nb5 {[%clk 0:02:59]}  Na6 {[%clk 0:02:52]} 5. e3 {[%clk 0:02:59]}  c6 {[%clk 0:02:50]} 6. Nc3 {[%clk 0:03:00]}  Nc7 {[%clk 0:02:48]} 7. a3 {[%clk 0:02:59]}  Bd6 {[%clk 0:02:46]} 8. Nf3 {[%clk 0:02:57]}  O-O {[%clk 0:02:44]} 9. Ne5 {[%clk 0:02:57]}  c5 {[%clk 0:02:42]} 10. Bd3 {[%clk 0:02:55]}  b5 {[%clk 0:02:29]} 11. O-O {[%clk 0:02:48]}  b4 {[%clk 0:02:19]} 12. axb4 {[%clk 0:02:48]}  cxb4 {[%clk 0:02:20]} 13. Ne2 {[%clk 0:02:49]}  a5 {[%clk 0:02:17]} 14. Ng3 {[%clk 0:02:47]}  a4 {[%clk 0:02:11]} 15. Nh5 {[%clk 0:02:38]}  Nce8 {[%clk 0:01:50]} 16. Ng3 {[%clk 0:02:31]}  a3 {[%clk 0:01:33]} 17. bxa3 {[%clk 0:02:29]}  bxa3 {[%clk 0:01:34]} 18. Qd2 {[%clk 0:02:29]}  Ba6 {[%clk 0:01:31]} 19. Bxa6 {[%clk 0:02:28]}  Rxa6 {[%clk 0:01:32]} 20. Rfb1 {[%clk 0:02:24]}  Nc7 {[%clk 0:01:24]} 21. Qd3 {[%clk 0:02:20]}  Qa8 {[%clk 0:01:23]} 22. c4 {[%clk 0:02:10]}  dxc4 {[%clk 0:01:19]} 23. Qxc4 {[%clk 0:02:11]}  Ncd5 {[%clk 0:01:14]} 24. Ne2 {[%clk 0:02:03]}  Rc8 {[%clk 0:01:11]} 25. Qd3 {[%clk 0:02:02]}  Rb8 {[%clk 0:00:59]} 26. Rf1 {[%clk 0:01:53]}  a2 {[%clk 0:00:53]} 27. Bg3 {[%clk 0:01:50]}  Nb4 {[%clk 0:00:49]} 28. Qd2 {[%clk 0:01:42]}  Ne4 {[%clk 0:00:48]} 29. Qd1 {[%clk 0:01:37]}  Nxg3 {[%clk 0:00:44]} 30. Nxg3 {[%clk 0:01:38]}  Bxe5 {[%clk 0:00:44]} 31. dxe5 {[%clk 0:01:39]}  Rc8 {[%clk 0:00:41]} 32. Qg4 {[%clk 0:01:10]}  Nd5 {[%clk 0:00:23]} 33. Nh5 {[%clk 0:01:06]}  g6 {[%clk 0:00:23]} 34. e4 {[%clk 0:01:06]}  Ra4 {[%clk 0:00:19]} 35. Nf6+ {[%clk 0:00:57]}  Nxf6 {[%clk 0:00:19]} 36. exf6 {[%clk 0:00:58]}  h6 {[%clk 0:00:16]} 37. f3 {[%clk 0:00:53]}  Qa7+ {[%clk 0:00:15]} 38. Kh1 {[%clk 0:00:52]}  Qd4 {[%clk 0:00:16]} 39. Qf4 {[%clk 0:00:51]}  g5 {[%clk 0:00:14]} 40. Qg3 {[%clk 0:00:48]}  Qxf6 {[%clk 0:00:14]} 41. f4 {[%clk 0:00:49]}  Rxe4 {[%clk 0:00:06]} 42. fxg5 {[%clk 0:00:47]}  Qxg5 {[%clk 0:00:06]} 43. Qf3 {[%clk 0:00:44]}  Qg6 {[%clk 0:00:03]} 44. Rxa2 {[%clk 0:00:43]}  Rec4 {[%clk 0:00:03]} 45. Raf2 {[%clk 0:00:41]}  Rc1 {[%clk 0:00:01]} 46. h3 {[%clk 0:00:38]}  Rxf1+ {[%clk 0:00:01]} 47. Rxf1 {[%clk 0:00:39]}  Rf8 {[%clk 0:00:02]} 48. Qe3 {[%clk 0:00:37]}  f5 {[%clk 0:00:02]} 49. Qe5 {[%clk 0:00:37]}  Qf6 {[%clk 0:00:03]} 50. Qg3+ {[%clk 0:00:35]}  Kh7 {[%clk 0:00:03]} 51. Qd3 {[%clk 0:00:31]}  Rf7 {[%clk 0:00:03]} 52. g4 {[%clk 0:00:29]}  Qg6 {[%clk 0:00:03]} 53. gxf5 {[%clk 0:00:29]}  exf5 {[%clk 0:00:03]} 54. Rg1 {[%clk 0:00:27]}  Qc6+ {[%clk 0:00:03]} 55. Kh2 {[%clk 0:00:26]}  Qc7+ {[%clk 0:00:04]} 56. Kh1 {[%clk 0:00:25]}  Qb7+ {[%clk 0:00:05]} 57. Kh2 {[%clk 0:00:25]}  Qb8+ {[%clk 0:00:05]} 58. Kh1 {[%clk 0:00:25]}  Qa8+ {[%clk 0:00:06]} 59. Kh2 {[%clk 0:00:26]}  Qe4 {[%clk 0:00:06]} 60. Qg3 {[%clk 0:00:25]}  Qe2+ {[%clk 0:00:03]} 61. Rg2 {[%clk 0:00:25]}  Qxg2+ {[%clk 0:00:02]} 62. Qxg2 {[%clk 0:00:26]}  f4 {[%clk 0:00:02]} 63. Qe4+ {[%clk 0:00:24]}  Kg7 {[%clk 0:00:03]} 64. Kg2 {[%clk 0:00:25]}  Rf6 {[%clk 0:00:03]} 65. Kf3 {[%clk 0:00:24]}  Rf7 {[%clk 0:00:04]} 66. h4 {[%clk 0:00:25]}  Rf6 {[%clk 0:00:04]} 67. h5 {[%clk 0:00:25]}  Kf7 {[%clk 0:00:05]} 68. Qd5+ {[%clk 0:00:25]}  Ke7 {[%clk 0:00:05]} 69. Qg8 {[%clk 0:00:24]}  Kd6 {[%clk 0:00:05]} 70. Qg7 {[%clk 0:00:24]}  Ke6 {[%clk 0:00:06]} 71. Qc7 {[%clk 0:00:23]}  Kd5 {[%clk 0:00:03]} 72. Qe7 {[%clk 0:00:21]}  Re6 {[%clk 0:00:01]} 73. Qg7 {[%clk 0:00:21]}  Re3+ {[%clk 0:00:01]} 74. Kxf4 {[%clk 0:00:21]}  Re6 {[%clk 0:00:02]} 75. Kf5 {[%clk 0:00:21]}  Kd6 {[%clk 0:00:03]} 76. Qf8+ {[%clk 0:00:20]}  Kd7 {[%clk 0:00:03]} 77. Qf7+ {[%clk 0:00:21]}  Re7 {[%clk 0:00:04]} 78. Qd5+ {[%clk 0:00:21]}  Ke8 {[%clk 0:00:04]} 79. Kf6 {[%clk 0:00:22]}  Re1 {[%clk 0:00:05]} 80. Qb5+ {[%clk 0:00:19]}  Kd8 {[%clk 0:00:05]} 81. Qa5+ {[%clk 0:00:20]} 1-0


[Site "https://www.chess.com"]

[Event "Titled Tuesday Blitz November 2 2021"]
[White "Barrionuevo, Pablo"]
[Black "Demidov, Mikhail"]
[WhiteFideId "110566"]
[BlackFideId "4197143"]
[WhiteElo "2250"]
[BlackElo "2527"]
[Result "1-0"]
[Round "01"]
[TimeControl "180+1"]
[Date "2021.11.02"]
[WhiteClock "0:00:32"]
[BlackClock "0:00:10"]

1. c4 {[%clk 0:03:00]}  g6 {[%clk 0:02:55]} 2. g3 {[%clk 0:02:59]}  Bg7 {[%clk 0:02:54]} 3. Bg2 {[%clk 0:02:59]}  d6 {[%clk 0:02:54]} 4. Nc3 {[%clk 0:02:59]}  Nd7 {[%clk 0:02:54]} 5. e4 {[%clk 0:03:00]}  e5 {[%clk 0:02:54]} 6. Nge2 {[%clk 0:03:00]}  h5 {[%clk 0:02:53]} 7. h3 {[%clk 0:02:59]}  Nc5 {[%clk 0:02:48]} 8. d3 {[%clk 0:02:59]}  Nh6 {[%clk 0:02:42]} 9. b4 {[%clk 0:02:59]}  Ne6 {[%clk 0:02:41]} 10. Be3 {[%clk 0:02:58]}  a5 {[%clk 0:02:40]} 11. b5 {[%clk 0:02:52]}  f5 {[%clk 0:02:33]} 12. Qd2 {[%clk 0:02:50]}  h4 {[%clk 0:02:29]} 13. Nd5 {[%clk 0:02:44]}  hxg3 {[%clk 0:02:13]} 14. fxg3 {[%clk 0:02:41]}  Nf7 {[%clk 0:02:10]} 15. exf5 {[%clk 0:02:36]}  gxf5 {[%clk 0:02:09]} 16. O-O {[%clk 0:02:35]}  Nh6 {[%clk 0:01:42]} 17. Rae1 {[%clk 0:02:25]}  Bd7 {[%clk 0:01:40]} 18. a4 {[%clk 0:02:23]}  Kf8 {[%clk 0:00:59]} 19. d4 {[%clk 0:01:51]}  Kg8 {[%clk 0:00:52]} 20. dxe5 {[%clk 0:01:45]}  dxe5 {[%clk 0:00:51]} 21. Bxh6 {[%clk 0:01:29]}  Rxh6 {[%clk 0:00:44]} 22. Rxf5 {[%clk 0:01:28]}  Nf4 {[%clk 0:00:36]} 23. Rxf4 {[%clk 0:01:18]}  exf4 {[%clk 0:00:35]} 24. Nexf4 {[%clk 0:01:17]}  c6 {[%clk 0:00:35]} 25. Ne7+ {[%clk 0:01:14]}  Kh8 {[%clk 0:00:33]} 26. Nfg6+ {[%clk 0:01:10]}  Kh7 {[%clk 0:00:30]} 27. Be4 {[%clk 0:01:09]}  Qb6+ {[%clk 0:00:19]} 28. Re3 {[%clk 0:00:53]}  Bd4 {[%clk 0:00:18]} 29. Kg2 {[%clk 0:00:44]}  Bxh3+ {[%clk 0:00:15]} 30. Kh2 {[%clk 0:00:40]}  Bf1+ {[%clk 0:00:14]} 31. Nh4+ {[%clk 0:00:39]}  Kh8 {[%clk 0:00:13]} 32. Rf3 {[%clk 0:00:35]}  Bxc4 {[%clk 0:00:10]} 33. Qxh6# {[%clk 0:00:32]} 1-0


[Site "https://www.chess.com"]

[Event "Titled Tuesday Blitz November 2 2021"]
[White "Devaev, Alexander"]
[Black "Shankland, Sam"]
[WhiteFideId "4169395"]
[BlackFideId "2004887"]
[WhiteElo "2185"]
[BlackElo "2660"]
[Result "0-1"]
[Round "01"]
[TimeControl "180+1"]
[Date "2021.11.02"]
[WhiteClock "0:00:19"]
[BlackClock "0:02:20"]

1. d4 {[%clk 0:02:19]}  d5 {[%clk 0:02:59]} 2. c4 {[%clk 0:02:20]}  c6 {[%clk 0:02:59]} 3. cxd5 {[%clk 0:02:20]}  cxd5 {[%clk 0:03:00]} 4. Nc3 {[%clk 0:02:20]}  Nf6 {[%clk 0:03:00]} 5. Bf4 {[%clk 0:02:21]}  Nc6 {[%clk 0:03:01]} 6. e3 {[%clk 0:02:21]}  a6 {[%clk 0:03:01]} 7. Bd3 {[%clk 0:02:21]}  Bg4 {[%clk 0:03:01]} 8. f3 {[%clk 0:02:22]}  Bh5 {[%clk 0:03:00]} 9. Nge2 {[%clk 0:02:22]}  e6 {[%clk 0:02:59]} 10. O-O {[%clk 0:02:23]}  Bd6 {[%clk 0:02:59]} 11. Rc1 {[%clk 0:02:23]}  O-O {[%clk 0:02:58]} 12. Na4 {[%clk 0:02:24]}  e5 {[%clk 0:02:55]} 13. Bg5 {[%clk 0:01:42]}  Re8 {[%clk 0:02:50]} 14. Nc5 {[%clk 0:01:38]}  Qe7 {[%clk 0:02:48]} 15. Qd2 {[%clk 0:00:42]}  h6 {[%clk 0:02:38]} 16. Bxf6 {[%clk 0:00:40]}  Qxf6 {[%clk 0:02:37]} 17. Nxb7 {[%clk 0:00:37]}  Bb4 {[%clk 0:02:33]} 18. Qc2 {[%clk 0:00:26]}  Rac8 {[%clk 0:02:29]} 19. Bxa6 {[%clk 0:00:20]}  exd4 {[%clk 0:02:27]} 20. exd4 {[%clk 0:00:20]}  Nxd4 {[%clk 0:02:22]} 21. Nxd4 {[%clk 0:00:18]}  Rxc2 {[%clk 0:02:20]} 22. Nxc2 {[%clk 0:00:19]}  Qxa6 {[%clk 0:02:20]} 23. Nxb4 {[%clk 0:00:18]}  Qxb7 {[%clk 0:02:20]} 24. Nxd5 {[%clk 0:00:19]}  Qxd5 {[%clk 0:02:20]} 0-1


[Site "https://www.chess.com"]

[Event "Titled Tuesday Blitz November 2 2021"]
[White "Findlay, Ian T."]
[Black "Savchenko, Boris"]
[WhiteFideId "2600226"]
[BlackFideId "4147332"]
[WhiteElo "2267"]
[BlackElo "2526"]
[Result "0-1"]
[Round "01"]
[TimeControl "180+1"]
[Date "2021.11.02"]
[WhiteClock "0:02:31"]
[BlackClock "0:02:27"]

1. e4 {[%clk 0:02:56]}  c5 {[%clk 0:02:59]} 2. Nf3 {[%clk 0:02:55]}  d6 {[%clk 0:03:00]} 3. d4 {[%clk 0:02:55]}  cxd4 {[%clk 0:02:59]} 4. Nxd4 {[%clk 0:02:56]}  Nf6 {[%clk 0:03:00]} 5. Nc3 {[%clk 0:02:56]}  a6 {[%clk 0:03:01]} 6. h3 {[%clk 0:02:56]}  e5 {[%clk 0:03:00]} 7. Nb3 {[%clk 0:02:54]}  Be6 {[%clk 0:02:56]} 8. f4 {[%clk 0:02:52]}  Nbd7 {[%clk 0:02:49]} 9. f5 {[%clk 0:02:44]}  Bxb3 {[%clk 0:02:45]} 10. axb3 {[%clk 0:02:45]}  d5 {[%clk 0:02:44]} 11. exd5 {[%clk 0:02:41]}  Bb4 {[%clk 0:02:43]} 12. g4 {[%clk 0:02:36]}  Ne4 {[%clk 0:02:40]} 13. Qd3 {[%clk 0:02:31]}  Qh4+ {[%clk 0:02:27]} 0-1


[Site "https://www.chess.com"]

[Event "Titled Tuesday Blitz November 2 2021"]
[White "Jobava, Baadur"]
[Black "Vovk, Orest"]
[WhiteFideId "13601520"]
[BlackFideId "14113490"]
[WhiteElo "2731"]
[BlackElo "2203"]
[Result "1-0"]
[Round "01"]
[TimeControl "180+1"]
[Date "2021.11.02"]
[WhiteClock "0:00:40"]
[BlackClock "0:00:02"]

1. e4 {[%clk 0:03:00]}  g5 {[%clk 0:02:50]} 2. d4 {[%clk 0:02:59]}  h6 {[%clk 0:02:49]} 3. c3 {[%clk 0:03:00]}  Bg7 {[%clk 0:02:46]} 4. Bd3 {[%clk 0:02:59]}  d6 {[%clk 0:02:38]} 5. Ne2 {[%clk 0:02:59]}  c5 {[%clk 0:02:38]} 6. O-O {[%clk 0:02:59]}  Nc6 {[%clk 0:02:37]} 7. Be3 {[%clk 0:02:59]}  cxd4 {[%clk 0:02:34]} 8. cxd4 {[%clk 0:02:59]}  Nf6 {[%clk 0:02:31]} 9. f3 {[%clk 0:02:59]}  e5 {[%clk 0:02:02]} 10. Nbc3 {[%clk 0:02:48]}  O-O {[%clk 0:01:57]} 11. d5 {[%clk 0:02:43]}  Ne7 {[%clk 0:01:56]} 12. Rc1 {[%clk 0:02:38]}  Ng6 {[%clk 0:01:52]} 13. Kh1 {[%clk 0:02:26]}  Nh5 {[%clk 0:01:45]} 14. g3 {[%clk 0:02:23]}  Bh3 {[%clk 0:01:41]} 15. Rg1 {[%clk 0:02:23]}  g4 {[%clk 0:01:36]} 16. fxg4 {[%clk 0:02:11]}  Bxg4 {[%clk 0:01:36]} 17. Qf1 {[%clk 0:02:11]}  f5 {[%clk 0:01:22]} 18. exf5 {[%clk 0:02:08]}  Qd7 {[%clk 0:01:21]} 19. Qg2 {[%clk 0:01:58]}  Bxf5 {[%clk 0:00:55]} 20. Bxf5 {[%clk 0:01:54]}  Rxf5 {[%clk 0:00:54]} 21. Rgf1 {[%clk 0:01:35]}  Raf8 {[%clk 0:00:42]} 22. Kg1 {[%clk 0:01:34]}  Rxf1+ {[%clk 0:00:40]} 23. Rxf1 {[%clk 0:01:33]}  Rxf1+ {[%clk 0:00:41]} 24. Qxf1 {[%clk 0:01:32]}  Qg4 {[%clk 0:00:38]} 25. Bxa7 {[%clk 0:01:23]}  Nhf4 {[%clk 0:00:31]} 26. Be3 {[%clk 0:01:16]}  Nh3+ {[%clk 0:00:22]} 27. Kh1 {[%clk 0:01:14]}  Ng5 {[%clk 0:00:18]} 28. Bxg5 {[%clk 0:01:10]}  hxg5 {[%clk 0:00:19]} 29. h3 {[%clk 0:01:05]}  Qc4 {[%clk 0:00:13]} 30. Qf5 {[%clk 0:01:03]}  Nf8 {[%clk 0:00:07]} 31. b3 {[%clk 0:00:58]}  Qc5 {[%clk 0:00:05]} 32. Kg2 {[%clk 0:00:55]}  b5 {[%clk 0:00:06]} 33. Qd3 {[%clk 0:00:51]}  b4 {[%clk 0:00:05]} 34. Ne4 {[%clk 0:00:51]}  Qb6 {[%clk 0:00:05]} 35. Nxg5 {[%clk 0:00:49]}  Nd7 {[%clk 0:00:04]} 36. Qh7+ {[%clk 0:00:48]}  Kf8 {[%clk 0:00:04]} 37. Ne6+ {[%clk 0:00:49]}  Ke8 {[%clk 0:00:04]} 38. Qg6+ {[%clk 0:00:48]}  Ke7 {[%clk 0:00:02]} 39. Qxg7+ {[%clk 0:00:49]}  Ke8 {[%clk 0:00:02]} 40. Qg8+ {[%clk 0:00:40]}  Ke7 {[%clk 0:00:02]} 41. Ng7 {[%clk 0:00:39]}  Qe3 {[%clk 0:00:02]} 42. Nf5+ {[%clk 0:00:39]}  Kf6 {[%clk 0:00:02]} 43. Nxe3 {[%clk 0:00:40]} 1-0


[Site "https://www.chess.com"]

[Event "Titled Tuesday Blitz November 2 2021"]
[White "Muradli, Mahammad"]
[Black "Shevtchenko, Olesya"]
[WhiteFideId "13409301"]
[BlackFideId "24131890"]
[WhiteElo "2474"]
[BlackElo "2003"]
[Result "1-0"]
[Round "01"]
[TimeControl "180+1"]
[Date "2021.11.02"]
[WhiteClock "0:00:05"]
[BlackClock "0:00:02"]

1. d4 {[%clk 0:03:00]}  Nf6 {[%clk 0:02:57]} 2. c4 {[%clk 0:03:01]}  c5 {[%clk 0:02:57]} 3. d5 {[%clk 0:03:01]}  b5 {[%clk 0:02:57]} 4. cxb5 {[%clk 0:03:02]}  a6 {[%clk 0:02:58]} 5. bxa6 {[%clk 0:03:02]}  g6 {[%clk 0:02:58]} 6. Nc3 {[%clk 0:03:03]}  Bg7 {[%clk 0:02:57]} 7. e4 {[%clk 0:03:04]}  Qa5 {[%clk 0:02:57]} 8. Bd2 {[%clk 0:03:04]}  Bxa6 {[%clk 0:02:56]} 9. Bxa6 {[%clk 0:03:04]}  Qxa6 {[%clk 0:02:56]} 10. f3 {[%clk 0:03:05]}  O-O {[%clk 0:02:56]} 11. Nge2 {[%clk 0:03:05]}  d6 {[%clk 0:02:54]} 12. O-O {[%clk 0:03:06]}  Nbd7 {[%clk 0:02:54]} 13. b3 {[%clk 0:03:04]}  Rfc8 {[%clk 0:02:51]} 14. Qc2 {[%clk 0:03:04]}  Ne8 {[%clk 0:02:51]} 15. Rab1 {[%clk 0:03:03]}  Nc7 {[%clk 0:02:50]} 16. a4 {[%clk 0:03:03]}  Rab8 {[%clk 0:02:46]} 17. Kh1 {[%clk 0:03:03]}  Ne5 {[%clk 0:02:44]} 18. Be3 {[%clk 0:03:02]}  Nd3 {[%clk 0:02:41]} 19. Rfd1 {[%clk 0:03:02]}  Nb4 {[%clk 0:02:41]} 20. Qd2 {[%clk 0:03:03]}  Rb7 {[%clk 0:01:55]} 21. f4 {[%clk 0:02:54]}  Rcb8 {[%clk 0:01:54]} 22. e5 {[%clk 0:02:37]}  Nbxd5 {[%clk 0:01:43]} 23. Nxd5 {[%clk 0:02:09]}  Nxd5 {[%clk 0:01:43]} 24. Qxd5 {[%clk 0:02:10]}  Qxe2 {[%clk 0:01:42]} 25. Bg1 {[%clk 0:02:10]}  c4 {[%clk 0:01:29]} 26. exd6 {[%clk 0:02:06]}  exd6 {[%clk 0:01:26]} 27. b4 {[%clk 0:01:58]}  Rxb4 {[%clk 0:01:19]} 28. Rxb4 {[%clk 0:01:59]}  Rxb4 {[%clk 0:01:19]} 29. Qxd6 {[%clk 0:02:00]}  Bf8 {[%clk 0:01:20]} 30. Qd8 {[%clk 0:02:00]}  Rb2 {[%clk 0:01:10]} 31. Qd5 {[%clk 0:01:59]}  c3 {[%clk 0:01:07]} 32. Rc1 {[%clk 0:01:15]}  Rd2 {[%clk 0:00:50]} 33. Qc6 {[%clk 0:00:48]}  c2 {[%clk 0:00:48]} 34. a5 {[%clk 0:00:48]}  Qd1 {[%clk 0:00:42]} 35. Rxd1 {[%clk 0:00:16]}  cxd1=Q {[%clk 0:00:43]} 36. a6 {[%clk 0:00:16]}  Qa1 {[%clk 0:00:36]} 37. a7 {[%clk 0:00:15]}  Ra2 {[%clk 0:00:21]} 38. Qb7 {[%clk 0:00:10]}  Ra6 {[%clk 0:00:17]} 39. h3 {[%clk 0:00:08]}  Qa4 {[%clk 0:00:17]} 40. Qb8 {[%clk 0:00:05]}  Qa1 {[%clk 0:00:15]} 41. Kh2 {[%clk 0:00:04]}  Qa4 {[%clk 0:00:15]} 42. Bc5 {[%clk 0:00:04]}  Kg7 {[%clk 0:00:08]} 43. Qxf8+ {[%clk 0:00:04]}  Kf6 {[%clk 0:00:07]} 44. Qe7+ {[%clk 0:00:05]}  Kg7 {[%clk 0:00:05]} 45. Qe5+ {[%clk 0:00:05]}  f6 {[%clk 0:00:03]} 46. Qe7+ {[%clk 0:00:05]}  Kh6 {[%clk 0:00:03]} 47. Qf8+ {[%clk 0:00:05]}  Kh5 {[%clk 0:00:03]} 48. Qb8 {[%clk 0:00:05]}  Re6 {[%clk 0:00:02]} 49. g4+ {[%clk 0:00:04]}  Kh4 {[%clk 0:00:02]} 50. Bf2# {[%clk 0:00:05]} 1-0


[Site "https://www.chess.com"]

[Event "Titled Tuesday Blitz November 2 2021"]
[White "Nakamura, Hikaru"]
[Black "Nguyen Hong Nhung"]
[WhiteFideId "2016192"]
[BlackFideId "12412201"]
[WhiteElo "2884"]
[BlackElo "1661"]
[Result "1-0"]
[Round "01"]
[TimeControl "180+1"]
[Date "2021.11.02"]
[WhiteClock "0:01:44"]
[BlackClock "0:00:07"]

1. Nf3 {[%clk 0:03:00]}  f5 {[%clk 0:02:59]} 2. d3 {[%clk 0:03:00]}  Nf6 {[%clk 0:02:59]} 3. e4 {[%clk 0:02:55]}  d6 {[%clk 0:02:57]} 4. exf5 {[%clk 0:02:54]}  Bxf5 {[%clk 0:02:56]} 5. d4 {[%clk 0:02:55]}  Nc6 {[%clk 0:02:54]} 6. Bd3 {[%clk 0:02:54]}  Qd7 {[%clk 0:02:49]} 7. O-O {[%clk 0:02:54]}  O-O-O {[%clk 0:02:44]} 8. c4 {[%clk 0:02:54]}  e5 {[%clk 0:02:32]} 9. Bxf5 {[%clk 0:02:50]}  Qxf5 {[%clk 0:02:31]} 10. d5 {[%clk 0:02:50]}  Nb4 {[%clk 0:02:21]} 11. Nc3 {[%clk 0:02:41]}  Kb8 {[%clk 0:02:08]} 12. a3 {[%clk 0:02:33]}  Nc2 {[%clk 0:01:50]} 13. Ra2 {[%clk 0:02:31]}  g5 {[%clk 0:01:30]} 14. b4 {[%clk 0:02:24]}  g4 {[%clk 0:01:23]} 15. Nh4 {[%clk 0:02:17]}  Qh5 {[%clk 0:01:22]} 16. Rxc2 {[%clk 0:02:16]}  Qxh4 {[%clk 0:01:23]} 17. Be3 {[%clk 0:02:16]}  Rg8 {[%clk 0:01:17]} 18. c5 {[%clk 0:02:13]}  Bh6 {[%clk 0:01:11]} 19. c6 {[%clk 0:02:07]}  Bxe3 {[%clk 0:01:05]} 20. fxe3 {[%clk 0:02:07]}  g3 {[%clk 0:01:02]} 21. h3 {[%clk 0:02:08]}  Ne4 {[%clk 0:00:59]} 22. Qd3 {[%clk 0:02:04]}  Nxc3 {[%clk 0:00:52]} 23. Rxc3 {[%clk 0:02:05]}  Rdf8 {[%clk 0:00:44]} 24. Rcc1 {[%clk 0:02:03]}  Rf2 {[%clk 0:00:30]} 25. Qb5 {[%clk 0:01:55]}  Kc8 {[%clk 0:00:12]} 26. Qxb7+ {[%clk 0:01:51]}  Kd8 {[%clk 0:00:12]} 27. Qb8+ {[%clk 0:01:52]}  Ke7 {[%clk 0:00:13]} 28. Qxc7+ {[%clk 0:01:49]}  Ke8 {[%clk 0:00:11]} 29. Qd7+ {[%clk 0:01:49]}  Kf8 {[%clk 0:00:11]} 30. c7 {[%clk 0:01:45]}  Qe7 {[%clk 0:00:07]} 31. c8=Q+ {[%clk 0:01:44]} 1-0


[Site "https://www.chess.com"]